{"text_format":"1","workbook":"xlsx","n_sheets":2,"sheets":["T4","Uebersetzungen"],"not_rendered":{"charts":0,"images":0,"macros":0,"external_links":0,"defined_names":0,"comments":0,"pivot_tables":0},"unopened":[],"bounds":{"document_bytes":16777216,"sheet_cells":100000,"rows_first":2000,"rows_last":500,"rows_between":2000,"halvings":0,"cell_chars":16384,"cell_head_chars":4096},"cells_cut":0,"cells_raw":0,"read":"whole","date_system":"1900"}

{"sheet":"T4","index":0,"n_rows":41,"n_cols":10,"rows_kept":41,"cut":false,"hidden":false,"merged":[[40,1,40,4],[33,1,33,4],[34,1,34,4],[35,1,35,4],[36,1,36,4],[0,1,0,2],[38,1,38,4],[39,1,39,4],[37,1,37,4],[7,1,7,4],[29,1,29,4],[30,1,30,4],[31,1,31,4],[32,1,32,4],[8,1,8,3]]}
[{"$f":"MID(CELL(\"dateiname\",A1),FIND(\"]\",CELL(\"dateiname\",A1))+1,255)","v":"T4"},"Sprache / Langue / Lingua / Language",null,null,null,null,null,null,null,2]
[]
[]
[]
["<T4_SpaltenTitel_6>"]
["<T4_SpaltenTitel_7>"]
["<T4_SpaltenTitel_8>"]
["<T4_Ti>",{"$f":"VLOOKUP(A8,Uebersetzungen!$B$3:$F$67,'T4'!$J$1+1,FALSE)","v":"Taux de variation par rapport au même trimestre de l'année précédente, \n1er trim. 2020 - 3e trim. 2020"}]
["<T4_UTi>",{"$f":"VLOOKUP(A9,Uebersetzungen!$B$3:$F$67,'T4'!$J$1+1,FALSE)","v":"Indice suisse des prix de l'immobilier résidentiel, IMPI "},null,null,"T 4"]
["<T4_SpaltenTitel_1>",{"$f":"VLOOKUP(A10,Uebersetzungen!$B$3:$F$67,'T4'!$J$1+1,FALSE)","v":"Indice total et sous-indices (Base: 4e trim. 2019 = 100)"},{"$f":"VLOOKUP(A5,Uebersetzungen!$B$3:$F$67,'T4'!$J$1+1,FALSE)","v":"1er trim. 2020 \n(en %)"},{"$f":"VLOOKUP(A6,Uebersetzungen!$B$3:$F$67,'T4'!$J$1+1,FALSE)","v":"2e trim. 2020 \n(en %)"},{"$f":"VLOOKUP(A7,Uebersetzungen!$B$3:$F$67,'T4'!$J$1+1,FALSE)","v":"3e trim. 2020 \n(en %)"}]
["<Zeilentitel_1>",{"$f":"VLOOKUP(A11,Uebersetzungen!$B$3:$F$67,'T4'!$J$1+1,FALSE)","v":"Total "},1.6560418051000001,2.5078160281000001,2.5878619159]
["<Zeilentitel_4>",{"$f":"VLOOKUP(A12,Uebersetzungen!$B$3:$F$67,'T4'!$J$1+1,FALSE)","v":"Type de communes 1"},3.4175724801,2.9014207143999999,4.5025109889000001]
["<Zeilentitel_5>",{"$f":"VLOOKUP(A13,Uebersetzungen!$B$3:$F$67,'T4'!$J$1+1,FALSE)","v":"Type de communes 2"},1.1729636609,2.2993759115999999,0.86666502280000002]
["<Zeilentitel_6>",{"$f":"VLOOKUP(A14,Uebersetzungen!$B$3:$F$67,'T4'!$J$1+1,FALSE)","v":"Type de communes 3"},0.6104896823,0.69803922210000002,2.4905056684]
["<Zeilentitel_7>",{"$f":"VLOOKUP(A15,Uebersetzungen!$B$3:$F$67,'T4'!$J$1+1,FALSE)","v":"Type de communes 4"},0.42312090720000001,2.6644626582000002,1.2547944489]
["<Zeilentitel_8>",{"$f":"VLOOKUP(A16,Uebersetzungen!$B$3:$F$67,'T4'!$J$1+1,FALSE)","v":"Type de communes 5"},1.4721909819000001,2.7811784281,3.3081704359000002]
["<Zeilentitel_2>",{"$f":"VLOOKUP(A17,Uebersetzungen!$B$3:$F$67,'T4'!$J$1+1,FALSE)","v":"MI"},2.4527015893000002,2.3757395882000001,3.1395962202000001]
["<Zeilentitel_4>",{"$f":"VLOOKUP(A18,Uebersetzungen!$B$3:$F$67,'T4'!$J$1+1,FALSE)","v":"Type de communes 1"},5.3996760137999997,2.4729562627999999,5.9432493537999997]
["<Zeilentitel_5>",{"$f":"VLOOKUP(A19,Uebersetzungen!$B$3:$F$67,'T4'!$J$1+1,FALSE)","v":"Type de communes 2"},2.0552692465,2.0945605157,1.0518116177000001]
["<Zeilentitel_6>",{"$f":"VLOOKUP(A20,Uebersetzungen!$B$3:$F$67,'T4'!$J$1+1,FALSE)","v":"Type de communes 3"},2.5638243391,1.7750479339,2.9213995884999999]
["<Zeilentitel_7>",{"$f":"VLOOKUP(A21,Uebersetzungen!$B$3:$F$67,'T4'!$J$1+1,FALSE)","v":"Type de communes 4"},0.1151836638,2.8666325960000001,1.0847586010000001]
["<Zeilentitel_8>",{"$f":"VLOOKUP(A22,Uebersetzungen!$B$3:$F$67,'T4'!$J$1+1,FALSE)","v":"Type de communes 5"},2.0941645838,1.9577463035,4.1778107456000004]
["<Zeilentitel_3>",{"$f":"VLOOKUP(A23,Uebersetzungen!$B$3:$F$67,'T4'!$J$1+1,FALSE)","v":"PPE"},0.90235797780000004,2.6335583833,2.0848653661999998]
["<Zeilentitel_4>",{"$f":"VLOOKUP(A24,Uebersetzungen!$B$3:$F$67,'T4'!$J$1+1,FALSE)","v":"Type de communes 1"},1.850728368,3.2347600196999999,3.3285536438999999]
["<Zeilentitel_5>",{"$f":"VLOOKUP(A25,Uebersetzungen!$B$3:$F$67,'T4'!$J$1+1,FALSE)","v":"Type de communes 2"},0.49266554810000002,2.3915895652999999,0.74643707420000005]
["<Zeilentitel_6>",{"$f":"VLOOKUP(A26,Uebersetzungen!$B$3:$F$67,'T4'!$J$1+1,FALSE)","v":"Type de communes 3"},-0.71752243100000002,-4.0183854999999997E-2,2.1854369332000001]
["<Zeilentitel_7>",{"$f":"VLOOKUP(A27,Uebersetzungen!$B$3:$F$67,'T4'!$J$1+1,FALSE)","v":"Type de communes 4"},0.71347350310000002,2.4164859651000001,1.4727587016000001]
["<Zeilentitel_8>",{"$f":"VLOOKUP(A28,Uebersetzungen!$B$3:$F$67,'T4'!$J$1+1,FALSE)","v":"Type de communes 5"},0.47846515940000001,4.1837454418000002,2.0436320921000002]
["<Legende_1>",{"$f":"VLOOKUP(A29,Uebersetzungen!$B$3:$F$67,'T4'!$J$1+1,FALSE)","v":"Légende:"}]
["<Legende_2>",{"$f":"VLOOKUP(A30,Uebersetzungen!$B$3:$F$67,'T4'!$J$1+1,FALSE)","v":"Total - Logements en propriété (MI et PPE)"}]
["<Legende_3>",{"$f":"VLOOKUP(A31,Uebersetzungen!$B$3:$F$67,'T4'!$J$1+1,FALSE)","v":"MI - Maisons individuelles"}]
["<Legende_4>",{"$f":"VLOOKUP(A32,Uebersetzungen!$B$3:$F$67,'T4'!$J$1+1,FALSE)","v":"PPE - Appartements en propriété"}]
["<Legende_5>",{"$f":"VLOOKUP(A33,Uebersetzungen!$B$3:$F$67,'T4'!$J$1+1,FALSE)","v":"Type de communes 1 - Commune urbaine d'une grande agglomération "}]
["<Legende_6>",{"$f":"VLOOKUP(A34,Uebersetzungen!$B$3:$F$67,'T4'!$J$1+1,FALSE)","v":"Type de communes 2 - Commune urbaine d'une agglomération moyenne"}]
["<Legende_7>",{"$f":"VLOOKUP(A35,Uebersetzungen!$B$3:$F$67,'T4'!$J$1+1,FALSE)","v":"Type de communes 3 - Commune urbaine d'une petite ou hors agglomération"}]
["<Legende_8>",{"$f":"VLOOKUP(A36,Uebersetzungen!$B$3:$F$67,'T4'!$J$1+1,FALSE)","v":"Type de communes 4 - Commune intermédiaire "}]
["<Legende_9>",{"$f":"VLOOKUP(A37,Uebersetzungen!$B$3:$F$67,'T4'!$J$1+1,FALSE)","v":"Type de communes 5 - Commune rurale"}]
[]
["<Quelle>",{"$f":"VLOOKUP(A39,Uebersetzungen!$B$3:$F$67,'T4'!$J$1+1,FALSE)","v":"Sources: OFS - Indice suisse des prix de l'immobilier résidentiel, IMPI"}]
["<CopyRight>",{"$f":"VLOOKUP(A40,Uebersetzungen!$B$3:$F$67,'T4'!$J$1+1,FALSE)","v":"© OFS 2020"}]
["<Auskunft>",{"$f":"VLOOKUP(A41,Uebersetzungen!$B$3:$F$67,'T4'!$J$1+1,FALSE)","v":"Renseignements: Office fédéral de la statistique (OFS), IMPI@bfs.admin.ch, Tel. +41 58 463 60 69"}]

{"sheet":"Uebersetzungen","index":1,"n_rows":67,"n_cols":6,"rows_kept":67,"cut":false,"hidden":true,"merged":[]}
["Tabelle","Code","DE","FR","IT","EN"]
[]
["T1","<T1_Ti>","Statistische Kennzahlen, 3. Quartal 2020 ","Les chiffres statistiques clés, 3e trimestre 2020","Dati statistici chiave, 3° trimestre 2020","Statistical key figures, 3rd quarter 2020"]
[null,"<T1_UTi>","Schweizerischer Wohnimmobilienpreisindex, IMPI ","Indice suisse des prix de l'immobilier résidentiel, IMPI","Indice svizzero dei prezzi degli immobili residenziali, IMPI","Swiss Residential Property Price Index, IMPI"]
[null,"<T1_SpaltenTitel_1>","Totalindex \nund Subindizes","Indice total \net sous-indices","Indice totale \ne sottoindici","Total index \nand sub-indices "]
[null,"<T1_SpaltenTitel_2>","Gewicht in %","poids en %","pesi in %","Weight in %"]
[null,"<T1_SpaltenTitel_3>","Index (Basis: \nQ4 2019 = 100)","Indice (base: \n4e trim. 2019= 100)","Indice (base: \n4° trim. 2019= 100)","Index (Base: \nQ4 2019 = 100)"]
[null,"<T1_SpaltenTitel_4>","Veränderung (in %) zum ","Variation (en %) par rapport au","Variazione (in %) rispetto al ","Change (in %) compared to"]
[null,"<T1_SpaltenTitel_5>","Vorquartal","trim. précédent","trim. precedente","previous quarter"]
[null,"<T1_SpaltenTitel_6>","Q3 2019 ","3e trim. 2019","3° trim. 2019 ","Q3 2019 "]
[null,"<T1_SpaltenTitel_7>","Beitrag zur Veränderung gegenüber Vorquartal","Contribution à la variation \npar rapport au trim. précédent","Contributo alla variazione rispetto \nal trim. precedente","Contribution to the change compared \nto previous quarter"]
[]
["T2 ","<T2_Ti>","Indexwerte, Q1 2019 – Q3 2020","Valeurs de l'indice, 1er trim. 2019 – 3e trim. 2020","Valori dell'indice, 1° trim. 2019 – 3° trim. 2020","Index values, 1st quarter 2019 – 3rd quarter 2020"]
[null,"<T2_UTi>","Schweizerischer Wohnimmobilienpreisindex, IMPI","Indice suisse des prix de l'immobilier résidentiel, IMPI","Indice svizzero dei prezzi degli immobili residenziali, IMPI","Swiss Residential Property Price Index, IMPI"]
[null,"<T2_SpaltenTitel_1>","Totalindex und Subindizes (Basis: Q4 2019 = 100) ","Indice total et sous-indices (base: 4e trim. 2019 = 100)","Indice totale e sottoindici (base: 4° trim. 2019 = 100)","Total index and sub-indices (Base: Q4 2019 = 100)"]
[null,"<T2_SpaltenTitel_2>","Q1 2019","1er trim. 2019","1° trim. 2019","Q1 2019"]
[null,"<T2_SpaltenTitel_3>","Q2 2019","2e trim. 2019","2° trim. 2019","Q2 2019"]
[null,"<T2_SpaltenTitel_4>","Q3 2019","3e trim. 2019","3° trim. 2019","Q3 2019"]
[null,"<T2_SpaltenTitel_5>","Q4 2019","4e trim. 2019","4° trim. 2019","Q4 2019"]
[null,"<T2_SpaltenTitel_6>","Q1 2020","1er trim. 2020","1° trim. 2020","Q1 2020"]
[null,"<T2_SpaltenTitel_7>","Q2 2020","2e trim. 2020","2° trim. 2020","Q2 2020"]
[null,"<T2_SpaltenTitel_8>","Q3 2020","3e trim. 2020","3° trim. 2020","Q3 2020"]
[]
["T3","<T3_Ti>","Veränderungsraten gegenüber dem Vorquartal, 2. Quartal 2019 - 3. Quartal 2020","Taux de variation par rapport au trimestre précédent, 2e trim. 2019 - 3e trim. 2020","Tassi di variazione rispetto al trimestre precedente, 2° trim. 2019 - 3° trim. 2020","Rates of change compared with the previous quarter, 2nd quarter 2019 - 3rd quarter 2020"]
[null,"<T3_UTi>","Schweizerischer Wohnimmobilienpreisindex, IMPI","Indice suisse des prix de l'immobilier résidentiel, IMPI ","Indice svizzero dei prezzi degli immobili residenziali, IMPI ","Swiss Residential Property Price Index, IMPI"]
[null,"<T3_SpaltenTitel_1>","Totalindex und Subindizes (Basis: Q4 2019 = 100)","Indice total et sous-indices (Base: 4e trim. 2019 = 100)","Indice totale e sottoindici (base: 4° trim. 2019 = 100)","Total index and sub-indices (Base: Q4 2019 = 100)"]
[null,"<T3_SpaltenTitel_3>","Q2 2019 \n(in %)","2e trim. 2019 \n(en %)","2° trim. 2019 \n(in %)","Q2 2019 \n(in %)"]
[null,"<T3_SpaltenTitel_4>","Q3 2019 \n(in %)","3e trim. 2019 \n(en %)","3° trim. 2019 \n(in %)","Q3 2019 \n(in %)"]
[null,"<T3_SpaltenTitel_5>","Q4 2019 \n(in %)","4e trim. 2019 \n(en %)","4° trim. 2019 \n(in %)","Q4 2019 \n(in %)"]
[null,"<T3_SpaltenTitel_6>","Q1 2020 \n(in %)","1er trim. 2020 \n(en %)","1° trim. 2020 \n(in %)","Q1 2020 \n(in %)"]
[null,"<T3_SpaltenTitel_7>","Q2 2020 \n(in %)","2e trim. 2020 \n(en %)","2° trim. 2020 \n(in %)","Q2 2020 \n(in %)"]
[null,"<T3_SpaltenTitel_8>","Q3 2020 \n(in %)","3e trim. 2020 \n(en %)","3° trim. 2020 \n(in %)","Q3 2020 \n(in %)"]
[]
["T4","<T4_Ti>","Veränderungsraten gegenüber dem gleichen Quartal im Vorjahr, \n1. Quartal - 3. Quartal 2020","Taux de variation par rapport au même trimestre de l'année précédente, \n1er trim. 2020 - 3e trim. 2020","Tassi di variazione rispetto al medesimo trimestre dell'anno precedente, \n1° trim. 2020 - 3° trim. 2020","Rates of change compared with the same quarter of the previous year, \nQ1 2020 - Q3 2020"]
[null,"<T4_UTi>","Schweizerischer Wohnimmobilienpreisindex, IMPI ","Indice suisse des prix de l'immobilier résidentiel, IMPI ","Indice svizzero dei prezzi degli immobili residenziali, IMPI ","Swiss Residential Property Price Index, IMPI "]
[null,"<T4_SpaltenTitel_1>","Totalindex und Subindizes (Basis: Q4 2019 = 100)","Indice total et sous-indices (Base: 4e trim. 2019 = 100)","Indice totale e sottoindici (base: 4° trim. 2019 = 100)","Total index and sub-indexes (Base: Q4 2019 = 100)"]
[null,"<T4_SpaltenTitel_6>","Q1 2020 \n(in %)","1er trim. 2020 \n(en %)","1° trim. 2020 \n(in %)","Q1 2020 \n(in %)"]
[null,"<T4_SpaltenTitel_7>","Q2 2020 \n(in %)","2e trim. 2020 \n(en %)","2° trim. 2020 \n(in %)","Q2 2020 \n(in %)"]
[null,"<T4_SpaltenTitel_8>","Q3 2020 \n(in %)","3e trim. 2020 \n(en %)","3° trim. 2020 \n(in %)","Q3 2020 \n(in %)"]
[]
["T5","<T5_Ti>","Die Gewichtung der Subindizes","La pondération des sous-indices ","Ponderazione dei sottoindici","The weights of the subindices"]
[null,"<T5_UTi>","Schweizerischer Immobilienpreisindex, IMPI","Indice suisse des prix de l'immobilier résidentiel, IMPI","Indice svizzero dei prezzi degli immobili residenziali, IMPI","Swiss Residential Property Price Index, IMPI"]
[null,"<T5_SpaltenTitel_1>","Totalindex und Subindizes \n(Basis: Q4 2019 = 100)","Indice total et sous-indices \n(Base: 4e trim. 2019 = 100)","Indice totale e sottoindici \n(base: 4° trim. 2019 = 100)","Total index and sub-indices \n(Base: Q4 2019 = 100)"]
[null,"<T5_SpaltenTitel_2>","Gewichte 2020 \n(Anteil in %) 1)","Poids 2020 \n(part en %) 1)","Pesi 2020 \n(quota in %) 1)","Weights 2020 \n(share in %) 1)"]
[null,"<T5_Bemerkung>","(1)  Bei der Berechnung des Gesamtindex werden die einzelnen Zellen aggregiert. Dabei werden sie anhand ihres Anteils am Transaktionsvolumen aus dem Vorjahr gewichtet.","(1)  Les strates individuelles sont agrégées jusqu'au niveau de l'indice total. Elles sont pondérées en fonction de leur part dans le volume total des transactions de l'année précédente.","(1) I singoli strati vengono aggregati nel calcolo dell'indice totale. Essi sono ponderati in base alla loro quota di  volume delle transazioni dell'anno precedente.","(1) When calculating the total index, the individual strata are aggregated. They are weighted according to their share of the transaction volume from the previous year."]
[]
["T1-T5","<Zeilentitel_1>","Total ","Total ","Totale ","Total"]
[null,"<Zeilentitel_2>","EFH","MI","CU","SFH"]
[null,"<Zeilentitel_3>","EGW","PPE","APP","CONDO"]
[null,"<Zeilentitel_4>","GemeindeTyp 1","Type de communes 1","Tipo di Comune 1","Type of municipality 1"]
[null,"<Zeilentitel_5>","GemeindeTyp 2","Type de communes 2","Tipo di Comune 2","Type of municipality 2"]
[null,"<Zeilentitel_6>","GemeindeTyp 3","Type de communes 3","Tipo di Comune 3","Type of municipality 3"]
[null,"<Zeilentitel_7>","GemeindeTyp 4","Type de communes 4","Tipo di Comune 4","Type of municipality 4"]
[null,"<Zeilentitel_8>","GemeindeTyp 5","Type de communes 5","Tipo di Comune 5","Type of municipality 5"]
[]
[null,"<Legende_1>","Legende:","Légende:","Legenda:","Legend:"]
[null,"<Legende_2>","Total - Wohneigentum (EFH und EGW)","Total - Logements en propriété (MI et PPE)","Totale - Proprietà residenziale (CU e APP)","Total - Residential property (SFH and CONDO)"]
[null,"<Legende_3>","EFH - Einfamilienhäuser","MI - Maisons individuelles","CU - Case unifamiliari","SFH - Single-family houses"]
[null,"<Legende_4>","EGW - Eigentumswohnungen ","PPE - Appartements en propriété","APP - Appartementi di proprietà","CONDO - Condominiums"]
[null,"<Legende_5>","GemeindeTyp 1 - Städtische Gemeinde einer grossen Agglomeration","Type de communes 1 - Commune urbaine d'une grande agglomération ","Tipo di Comune 1 - Comune urbano di un grande agglomerato","Type of municipality 1 - Urban municipality of a large agglomeration"]
[null,"<Legende_6>","GemeindeTyp 2 - Städtische Gemeinde einer mittelgrossen Agglomeration","Type de communes 2 - Commune urbaine d'une agglomération moyenne","Tipo di Comune 2 - Comune urbano di un agglomerato medio","Type of municipality 2 - Urban  municipality of a medium-sized agglomeration"]
[null,"<Legende_7>","GemeindeTyp 3 - Städtische Gemeinde einer kleinen oder ausserhalb einer Agglomeration","Type de communes 3 - Commune urbaine d'une petite ou hors agglomération","Tipo di Comune 3 - Comune urbano di un piccolo/fuori agglomerato","Type of municipality 3 - Urban municipality of a small or outside agglomeration"]
[null,"<Legende_8>","GemeindeTyp 4 - Intermediäre Gemeinde ","Type de communes 4 - Commune intermédiaire ","Tipo di Comune 4 - Comune intermedio ","Type of municipality 4 - Intermediate municipality"]
[null,"<Legende_9>","GemeindeTyp 5 - Ländliche Gemeinde","Type de communes 5 - Commune rurale","Tipo di Comune 5 - Comune rurale","Type of municipality 5 - Rural municipality"]
[null,"<Quelle>","Quelle: BFS - Schweizerischer Wohnimmobilienpreisindex, IMPI","Sources: OFS - Indice suisse des prix de l'immobilier résidentiel, IMPI","Fonti: UST - Indice svizzero dei prezzi degli immobili residenziali, IMPI","Sources: FSO - Swiss Residential Property Price Index, IMPI"]
[null,"<CopyRight>","© BFS 2020","© OFS 2020","© UST 2020","© FSO 2020 "]
[null,"<Auskunft>","Auskunft: Bundesamt für Statistik (BFS), IMPI@bfs.admin.ch, Tel. +41 58 463 60 69","Renseignements: Office fédéral de la statistique (OFS), IMPI@bfs.admin.ch, Tel. +41 58 463 60 69","Informazioni: Ufficio federale di statistica (UST), IMPI@bfs.admin.ch, tel. +41 58 463 60 69","Information: Federal Statistical Office (FSO), IMPI@bfs.admin.ch, Tel. +41 58 463 60 69 "]